Cogmind - Beta 15 @@@ ROGUE MODE // 2025.05.10 @ 21:04:22 Player: CRS Result: Destroyed by G-47 Trooper with Particle Gun Performance ------------- Evolutions (1) 500 Regions Visited (2) 400 Robots Destroyed (5) 25 Value Destroyed (85) 85 Prototype IDs (1) 20 Alien Tech Used (0) 0 Bonus (200) 200 TOTAL SCORE: 1230 Bonus ------- Pacifist 200 Cogmind --------- Core Integrity 0/400 Matter 275/300 Energy 124/125 System Corruption 3% Temperature Cool (9) Movement Rolling (80) Location -9/Materials Parts ------- > --- POWER (1) -------- Light Ion Engine > --- PROPULSION (4) --- Aluminum Leg Improved Aluminum Leg Improved Aluminum Leg Wheel > --- UTILITY (2) ------ Small Storage Unit > --- WEAPON (2) ------- (None) > --- INVENTORY (8) ---- Wheel Compact Wheel Medium Matter Pod (51) Terrain Scanner Medium Armor Plating Beam Rifle Welding Torch Peak State ------------ > --- POWER ------------ Light Ion Engine > --- PROPULSION ------- Aluminum Leg Aluminum Leg Improved Aluminum Leg Improved Aluminum Leg > --- UTILITY ---------- Small Storage Unit > --- WEAPON ----------- Improved EM Shotgun Light Cannon > --- INVENTORY -------- Wheel Wheel Compact Wheel Medium Matter Pod Terrain Scanner Medium Armor Plating Beam Rifle Welding Torch [Rating: 13] Favorites ----------- Power Ion Engine Engine Ion Engine Propulsion Aluminum Leg Leg Aluminum Leg Wheel Wheel Utility Small Storage Unit Device Heat Sink Storage Small Storage Unit Weapon Light Assault Rifle Energy Gun Medium Laser Ballistic Gun Light Assault Rifle Ballistic Cannon Light Cannon Special Weapon Welding Torch Build | -11 -10 -9 ------- Run | Yrd Mat Mat Slots Evolved 2 | . . 2 Power . | . . . Propulsion 2 | . . 2 Utility . | . . . Weapon . | . . . Parts Attached 24 | 6 1 17 Power 4 | 1 . 3 Engine 4 | 1 . 3 Core . | . . . Reactor . | . . . Propulsion 10 | 2 . 8 Treads . | . . . Leg 8 | 2 . 6 Wheel 2 | . . 2 Hover . | . . . Flight . | . . . Utility 3 | 1 1 1 Device 1 | . . 1 Storage 2 | 1 1 . Processor . | . . . Hackware . | . . . Protection . | . . . Artifact . | . . . Weapon 7 | 2 . 5 Energy Gun 2 | 1 . 1 Energy Cannon . | . . . Ballistic Gun 2 | 1 . 1 Ballistic Cannon 1 | . . 1 Launcher . | . . . Special Weapon 2 | . . 2 Impact Weapon . | . . . Slashing Weapon . | . . . Piercing Weapon . | . . . Special Melee Weapon . | . . . Unidentified Prototypes 1 | . . 1 Parts Lost 11 | . . 11 Power 2 | . . 2 Propulsion 3 | . . 3 Utility 2 | . . 2 Weapon 4 | . . 4 Highest Loss Streak 7 | . . 7 To Critical Strikes . | . . . Average Backups 6 | 3 6 7 Power . | 1 1 . Propulsion 2 | 1 2 2 Utility 1 | . . 2 Weapon . | 1 1 . Tool/Special . | . . . Unused Backups 7 | . . 7 Power . | . . . Propulsion 2 | . . 2 Utility 3 | . . 3 Weapon 1 | . . 1 Tool/Special 1 | . . 1 Average Slot Usage (%) 70 | . 93 63 Engine 9 | . 14 7 Leg 23 | . 28 22 Wheel 1 | . . 1 Storage 17 | . 21 15 Energy Gun 8 | . 14 6 Ballistic Gun 7 | . 14 6 Ballistic Cannon 1 | . . 1 Peak Build Rating 13 | 6 7 13 Average Rating 6 | 3 6 6 On Entrance 4 | . 6 7 Naked Turns . | . . . Heaviest Build 15 | 13 15 15 Greatest Support 46 | 20 20 46 Greatest Overweight (x) 3 | 3 . 2 Average Overweight (x) . | . . . Largest Inventory Capacity 8 | 8 8 8 Average Capacity 7 | 7 8 8 Most Carried 8 | 8 7 8 Average Carried 6 | 4 6 7 Final Capacity 8 | 8 8 8 Final Carried 7 | 4 7 7 Class Distribution -------------------- 61% | Mutant 38% | Scavenger-Mutant Dominant Class ---------------- Mutant | -10/Materials Scavenger-Mutant | -9/Materials Resources | -11 -10 -9 ----------- Run | Yrd Mat Mat Matter Collected 471 | 223 . 248 Remotely . | . . . Salvage Created 115 | . . 115 Parts 7 | . . 7 Haulers Intercepted . | . . . Recyclers Shooed . | . . . Parts Field Recycled . | . . . Retrieved Matter . | . . . Parts Self-Destructed . | . . . Prevented . | . . . Kills | -11 -10 -9 ------- Run | Yrd Mat Mat Combat Hostiles Destroyed 5 | . . 5 Guns 4 | . . 4 Cannons 1 | . . 1 Classes Destroyed 2 | . . 2 Swarmer 4 | . . 4 Sentry 1 | . . 1 Best Kill Streak 2 | . . 2 Combat Bots Only 2 | . . 2 Max Kills in Single Turn 1 | . . 1 Gunslinging . | . . . Exploded . | . . . Melee . | . . . Uniques/NPCs Destroyed . | . . . Combat | -11 -10 -9 -------- Run | Yrd Mat Mat Hostile Shots Fired 173 | . 7 166 Missed 47 | . 3 44 Hits 126 | . 4 122 Projectile 126 | . 4 122 Damage Taken 1460 | . 36 1424 Core 424 | . 18 406 Absorbed by Shields . | . . . Core Remaining (%) 96 | 100 92 . Volleys Fired 22 | . . 22 Largest 2 | . . 2 Hottest 70 | . . 70 Shots Fired 34 | . . 34 Gun 30 | . . 30 Cannon . | . . . Launcher . | . . . Special 4 | . . 4 Kinetic 22 | . . 22 Thermal 12 | . . 12 Explosive . | . . . Electromagnetic . | . . . Robot Hit Streak 3 | . . 3 Robot Miss Streak 3 | . . 3 Penetration Max . | . . . Secondary Targets 1 | . . 1 Max Gunslinging Chain 1 | . . 1 Shots Hit Robots 19 | . . 19 Core Hits 9 | . . 9 Critical Kills . | . . . Critical Parts Destroyed . | . . . Critical Strikes 1 | . . 1 Burn 1 | . . 1 Melee Attacks . | . . . Impact . | . . . Slashing . | . . . Piercing . | . . . Sneak Attacks . | . . . Combat Hostiles . | . . . Follow-up Attacks . | . . . Damage Inflicted 227 | . . 227 Guns 198 | . . 198 Cannons . | . . . Explosions . | . . . Melee . | . . . Ramming 27 | . . 27 Kinetic 123 | . . 123 Thermal 77 | . . 77 Explosive . | . . . Electromagnetic . | . . . Impact . | . . . Slashing . | . . . Piercing . | . . . Highest Corruption 3 | . . 3 Average Corruption 3 | . . 3 Corruption Purged . | . . . Corruption Blocked . | . . . Effects 1 | . . 1 Matter Fused 1 | . . 1 Overload Shots . | . . . Overflow Damage . | . . . Projectiles . | . . . Explosions . | . . . Melee . | . . . Knockbacks . | . . . Impact . | . . . Kinetic . | . . . Secondary . | . . . Self-Inflicted Damage 7 | . . 7 Shots . | . . . Rammed 2 | . . 2 Targets Rammed 8 | . . 8 Kicked 6 | . . 6 Crushed . | . . . Highest Temperature 44 | . . 44 Average Temperature 21 | . . 21 Received Heat Transfer 468 | . . 468 Siege Activations . | . . . Martial Activations . | . . . Shielding Activations . | . . . Robots Disrupted . | . . . Combat Hostiles . | . . . Robots Corrupted . | . . . Combat Hostiles . | . . . Parts Fried . | . . . Impact Corruptions . | . . . Robots Melted . | . . . Combat Hostiles . | . . . Parts Melted . | . . . Heat Transferred 321 | . . 321 Parts Sabotaged . | . . . Parts Stolen . | . . . Parts Stripped . | . . . Power Chain Reactions . | . . . Alert | -11 -10 -9 ------- Run | Yrd Mat Mat Maximum Alert Level . | . . . Low Security (%) 100 | 100 100 100 Level 1 . | . . . Level 2 . | . . . Level 3 . | . . . Level 4 . | . . . Level 5 . | . . . High Security . | . . . Max Security . | . . . Peak Influence 40 | . . 40 Initial . | . . . Average 4 | . . 6 Influence Increases 122 | . . 122 Destroy 0b10 Robot/C 100 | . . 100 Destroy Leader 20 | . . 20 Successful Hack 2 | . . 2 Influence Decreases 122 | . . 122 Time Decay 52 | . . 52 Lost Part 70 | . . 70 Squads Dispatched 2 | . . 2 Investigation . | . . . Extermination . | . . . Reinforcement 2 | . . 2 Assault . | . . . Garrison . | . . . Intercept . | . . . Searches Triggered . | . . . Construction Impeded . | . . . Haulers Reinforced . | . . . Active Scanning Responses . | . . . Cargo Convoy Interrupts . | . . . Stealth | -11 -10 -9 --------- Run | Yrd Mat Mat Distress Signals 1 | . . 1 Communications Jammed . | . . . Distress Signals . | . . . Times Spotted 22 | . 5 17 Peak Tracking Total 9 | . 5 9 Tactical Retreats . | . . . Traps | -11 -10 -9 ------- Run | Yrd Mat Mat Traps Triggered 3 | . . 3 Indirectly . | . . . Trap Hack Attempts . | . . . Triggered . | . . . Disarmed . | . . . Reprogrammed . | . . . Reused . | . . . Traps Extracted . | . . . Installed . | . . . Triggered . | . . . Machines | -11 -10 -9 ---------- Run | Yrd Mat Mat Machines Disabled . | . . . Max in Single Turn . | . . . Machines Repaired . | . . . Machines Dismantled . | . . . Machines Sabotaged . | . . . Overloaded Fab Kills . | . . . Hacking | -11 -10 -9 --------- Run | Yrd Mat Mat Machines Accessed 1 | . . 1 Terminals . | . . . Fabricators . | . . . Repair Stations . | . . . Recycling Units . | . . . Scanalyzers 1 | . . 1 Garrison Access . | . . . Total Hacks 4 | . . 4 Successful 4 | . . 4 Failed . | . . . Catastrophic . | . . . Database Lockouts . | . . . Manual . | . . . Terminals . | . . . Fabricators . | . . . Repair Stations . | . . . Recycling Units . | . . . Scanalyzers 4 | . . 4 Garrison Access . | . . . Terminal Hacks . | . . . Fabricator Hacks . | . . . Repair Station Hacks . | . . . Recycling Unit Hacks . | . . . Scanalyzer 4 | . . 4 Insert Component 2 | . . 2 Analyze 2 | . . 2 Garrison Access Hacks . | . . . Unauthorized Hacks . | . . . Terminals . | . . . Fabricators . | . . . Repair Stations . | . . . Recycling Units . | . . . Scanalyzers . | . . . Garrison Access . | . . . Data Cores Recovered . | . . . Used . | . . . Hacking Detections . | . . . Full Trace Events . | . . . Feedback Events . | . . . Feedback Blocked . | . . . Robot Schematics Acquired . | . . . Robots Built . | . . . Authchips . | . . . Time . | . . . Total Robot Build Rating . | . . . Part Schematics Acquired 2 | . . 2 Parts Built . | . . . Authchips . | . . . Time . | . . . Total Part Build Rating . | . . . Parts Repaired . | . . . Time . | . . . Parts Recycled . | . . . Recycled Matter . | . . . Retrieved Matter . | . . . Retrieved Components . | . . . Parts Scanalyzed 2 | . . 2 Part Schematics Acquired 2 | . . 2 Parts Damaged . | . . . Bothacking | -11 -10 -9 ------------ Run | Yrd Mat Mat Used RIF Installer . | . . . Robots Hacked . | . . . Non-combat . | . . . Combat . | . . . Robot Hacks Applied . | . . . Relay Couplers Released . | . . . Fabnet Peak Effective % . | . . . Robots Rewired . | . . . Allies Hacked . | . . . Hacks Repelled . | . . . Allies | -11 -10 -9 -------- Run | Yrd Mat Mat Total Allies . | . . . Largest Group . | . . . Highest-Rated Group . | . . . Highest-Rated Ally . | . . . Total Orders . | . . . Ally Attacks . | . . . Total Damage . | . . . Kills . | . . . Allies Corrupted . | . . . Allies Melted . | . . . Intel | -11 -10 -9 ------- Run | Yrd Mat Mat Active Infowar (turns) . | . . . Robot Analysis Total . | . . . Derelict Logs Recovered . | . . . Drone Launches . | . . . Drone Recoveries . | . . . Exploration | -11 -10 -9 ------------- Run | Yrd Mat Mat Turns Passed 433 | 51 86 296 Spaces Moved 271 | 32 68 171 Core 23 | 16 . 7 Treads . | . . . Legs 212 | 16 68 128 Wheels 36 | . . 36 Hover . | . . . Flight . | . . . Fastest Speed 50 | 50 120 80 Average Speed 115 | 113 120 113 Slowest Speed 200 | 200 120 190 Overloaded Moves . | . . . Propulsion Burnouts . | . . . Robots Hopped . | . . . Potential Cave-ins . | . . . Cave-ins Triggered . | . . . Exploration Rate (%) 16 | 4 21 25 Regions Visited 2 Branch Regions . Pre-discovered Areas . | . . . Known Exits Taken . | . . . Unknown Exits Taken 2 | 1 1 . Scrap Searched . | . . . Spaces Dug . | . . . Terrain Destroyed . | . . . Melee . | . . . Projectile . | . . . AOE . | . . . Terrain Rammed . | . . . Walls Destroyed . | . . . Machines Disabled . | . . . Actions | -11 -10 -9 --------- Run | Yrd Mat Mat Total 359 | 47 72 240 Wait . | . . . Move 269 | 31 67 171 Hop . | . . . Pick Up 26 | 10 4 12 Fast Attach 7 | . . 7 Attach 20 | 6 1 13 Detach 2 | . . 2 Swap . | . . . Drop 5 | . . 5 Fire 22 | . . 22 Melee . | . . . Ram 2 | . . 2 Kick 6 | . . 6 Crush . | . . . Escape Stasis . | . . . Rewire . | . . . Trap . | . . . Miscellaneous . | . . . Route ------- -11/Scrapyard -10/Materials (discovered 2 exits: *Mat / [*Min]) -9/Materials (discovered 1 exit: [*Sto]) History --------- Turn | Location | Event 10 | -11/Scrapyard | Discovered new exit (range 16) 52 | -11/Scrapyard | Entered Materials 74 | -10/Materials | Discovered new exit (range 11) 104 | -10/Materials | Discovered new exit (range 16) 138 | -10/Materials | Entered another Materials area 138 | -9/Materials | Evolved 2 slots: Propulsion x2 144 | -9/Materials | Discovered new exit (range 15) 283 | -9/Materials | Core integrity fell below 50% 296 | -9/Materials | Core integrity fell below 20% 310 | -9/Materials | Met 8R-AWN 328 | -9/Materials | Lost 7 parts (1p2n1u3w) 364 | -9/Materials | Lost 3 parts (1p1n1u) 434 | -9/Materials | Destroyed by G-47 Trooper with Particle Gun Last Messages --------------- S-10 Pest unfolds itself. U-05 Engineer lays Concrete. Atomic Centrifuge disabled. U-05 Engineer lays Concrete. R-06 Scavenger collects Rnf. Ion Engine. Dropped Aluminum Leg. U-05 Engineer lays Concrete. S-10 Pest destroyed. U-05 Engineer lays Concrete. K-01 Serf collects debris. U-05 Engineer lays Concrete. Lgt. Cannon destroyed. U-05 Engineer lays Concrete. R-06 Scavenger collects Lgt. Treads. U-05 Engineer lays Concrete. Triggered Blade Trap. Massive razor-sharp blades shoot up from within the floor. Imp. EM Shotgun severed. U-05 Engineer lays Concrete. Map ----- +----------------------------------------------------+ | ?????????????????????????????????? | | ?????????????????????????????????? | | ?????????????????????????????????? | | ?????????????????????????????????? | | ?????????????????????????????????? | | ?????????????????????????????????? | | ?????????????????????????????????? | | ?????????????????????????????????? | | ?????????????????????????????????? | | ???????????????????????? #??????? | | ??????????????????????? #??????? | | ?????????????????????? ???????? | | ???????????????????? ????????? | | ????????????????????? #????????? | | ???????????###?###### #????????? | | ?########### ### +????????? | | ?# * === # #????????? | | ?# = = # "" #????????? | | ?# """ = =""" # """ #????????? | | ?# """ * "" # "" #????????? | | ?# " = = "" + ##??###### | | ?# ;= +? # | | ?#########";;;;; #? # | | ##### g # # | | * # # | | uY g = %!^ @ # | | g %! =[^ # # | | ##+## [[ %*s ### ##* # | | ##[[ [ u s "#?#+#?? # | | ##[[ # #?? # | | ## %" # "" #??? # | | ## + T" #??? # | | + # "" #????##### | | #######+###### # #????????? | | #???? ?????# # #????????? | | #???? ?????# #+####????????? | | ##???? ?????# ????????????? | | #???? ?????# ????????????? | | ##??? ?????# """???????????? | | #????!/ ????????? "?????????????? | | #????!/??????????????????????????? | | #???? ??????????????????????????? | | #?????#??????????????????????????? | | #????????????????????????????????? | | ?????????????????????????????????? | | ?????????????????????????????????? | | ?????????????????????????????????? | | ?????????????????????????????????? | | ?????????????????????????????????? | | ?????????????????????????????????? | +----------------------------------------------------+ Best States ------------- Heat Dissipation 38 Energy Generation 10 Energy Capacity 250 Matter Stores 328 Matter Capacity 400 Sight Range 16 Terrain Scan Density 10 Evasion (%) 55 Item Schematics ----------------- Aluminum Leg | -9/Materials | Scanalyzed Wheel | -9/Materials | Scanalyzed Robot Schematics ------------------ None Fabricated ------------ Nothing Repaired ---------- Nothing Alien Tech Used ----------------- None Achievements -------------- None Challenges ------------ None Game ------ Seed Understand Manual? 1 Play Time 00:09:12 Cumulative 8.0 hours Start 2025.05.10 @ 20:55:31 End 2025.05.10 @ 21:04:22 Sessions 1 Manual Loads 0 Difficulty Rogue Special Mode None Game No. 18 Rogue 18 Adventurer 0 Explorer 0 Win Type - Total 0 Types 0/0/0/0/0/0/0/0/0/0 Lore% 10 Gallery% 13 Achievement% 12 Wizard Run 0 Options --------- Layout 1 ASCII 0 Keyboard 0 Movement Mouse Keybinds 0 Fullscreen 1 Font 16/SmallcapsGlow Map View 50x40 Zoom Use 0% Tactical HUD 0 Map Filters NONE Filters NONE Steam SD RUN: 9d40e76b-91fb-4d96-8115-601780c3a2cb